fUSD/lending_fUSD_20250330
["ID","MTS","AMOUNT","RATE_DAILY","PERIOD"]
[356882494,1743370322740,-229.648749,0.000249,7]
[356882495,1743370322762,-151.0,0.000249,7]
[356882496,1743370322785,-2678.68981,0.000249,7]
[356882497,1743370322807,-2678.68981,0.000249,7]
[356882498,1743370322828,-218.165419,0.000249,7]
[356882499,1743370322851,-1881.99999992,0.00025,7]
[356882500,1743370322875,-710.016,0.00027455,16]
[356882501,1743370325628,151.0,0.000248,7]
[356882502,1743370326003,151.0,0.000249,7]
[356882503,1743370678657,-154.026854,0.000248,7]
[356882504,1743370678681,-159.558887,0.000248,7]
[356882505,1743370678704,-159.558887,0.000248,7]
[356882506,1743370678726,-151.0,0.000248,7]
[356882507,1743370678748,-151.0,0.000248,7]
[356882508,1743370678775,-156.452476,0.000248,7]
[356882509,1743370678798,-151.0,0.000248,7]
[356882510,1743370678820,-152.86331,0.000248,7]
[356882511,1743370678843,-152.86331,0.000248,7]
[356882512,1743370678864,-151.0,0.000248,7]
[356882513,1743370678886,-151.0,0.000248,7]
[356882514,1743370678908,-151.0,0.000248,7]
[356882515,1743370678930,-153.122379,0.000248,7]
[356882516,1743370678952,-151.0,0.000248,7]
[356882517,1743370678976,-151.0,0.000248,7]
[356882518,1743370679000,-153.235057,0.000248,7]
[356882519,1743370679023,-289.010153,0.000248,7]
[356882520,1743370679044,-289.010153,0.000248,7]
[356882521,1743370679067,-151.0,0.000248,7]
[356882522,1743370679089,-151.0,0.000248,7]
[356882523,1743370679114,-151.0,0.000248,7]
[356882524,1743370679136,-151.0,0.000248,7]
[356882525,1743370679158,-183.718999,0.000248,7]
[356882526,1743370679184,-151.0,0.000248,7]
[356882527,1743370679207,-183.718999,0.000248,7]
[356882528,1743370679234,-151.0,0.000248,7]
[356882529,1743370679261,-151.637956,0.000248,7]
[356882530,1743370679284,-151.0,0.000248,7]
[356882531,1743370679310,-151.0,0.000248,7]
[356882532,1743370679335,-151.0,0.000248,7]
[356882533,1743370679358,-159.558887,0.000249,7]
[356882534,1743370679380,-159.558887,0.000249,7]
[356882535,1743370679402,-151.0,0.000249,7]
[356882536,1743370679424,-151.0,0.000249,7]
[356882537,1743370679446,-151.0,0.000249,7]
[356882538,1743370679468,-152.86331,0.000249,7]
[356882539,1743370679490,-152.86331,0.000249,7]
[356882540,1743370679514,-289.010153,0.000249,7]
[356882541,1743370679536,-289.010153,0.000249,7]
[356882542,1743370679560,-273.22,0.00025993,120]
[356882543,1743370679584,-273.22,0.00028592,120]
[356882548,1743370834943,-2142.951848,0.000248,7]
[356882549,1743370834967,-2142.951848,0.000248,7]
[356882550,1743370834990,-151.0,0.000248,7]
[356882551,1743370835012,-151.0,0.000248,7]
[356882552,1743370835034,-151.0,0.000248,7]
[356882553,1743370835056,-151.0,0.000248,7]
[356882554,1743370835079,-253.156519,0.000248,7]
[356882555,1743370835101,-151.0,0.000248,7]
[356882556,1743370835124,-151.0,0.000248,7]
[356882557,1743370835148,-458.310154,0.000248,7]
[356882558,1743370835170,-152.217118,0.000248,7]
[356882559,1743370835193,-458.310154,0.000248,7]
[356882560,1743370835217,-151.0,0.000248,7]
[356882561,1743370835240,-151.0,0.000248,7]
[356882562,1743370835262,-231.208122,0.000248,7]
[356882563,1743370835285,-231.208122,0.000248,7]
[356882564,1743370835310,-151.0,0.000248,7]
[356882565,1743370835334,-151.0,0.000248,7]
[356882566,1743370835356,-151.0,0.000248,7]
[356882567,1743370835380,-288.858716,0.000249,7]
[356882568,1743370835403,-151.0,0.000249,7]
[356882569,1743370835424,-231.208122,0.000249,7]
[356882570,1743370835447,-231.208122,0.000249,7]
[356882571,1743370835469,-151.0,0.000249,7]
[356882572,1743370835491,-151.0,0.000249,7]
[356882573,1743370835513,-269.902348,0.000249,7]
[356882574,1743370835536,-715.378,0.00027458,16]
[356882575,1743370836571,151.0,0.000248,7]
[356882576,1743370836874,151.0,0.000249,7]
[356882581,1743371037192,-151.0,0.000248,7]
[356882582,1743371037220,-151.0,0.000248,7]
[356882583,1743371037243,-154.998951,0.000248,7]
[356882584,1743371037266,-165.347099,0.000248,7]
[356882585,1743371037290,-165.347099,0.000248,7]
[356882586,1743371037312,-151.0,0.000248,7]
[356882587,1743371037338,-1928.656664,0.000248,7]
[356882588,1743371037361,-1928.656664,0.000248,7]
[356882589,1743371037383,-151.0,0.000248,7]
[356882590,1743371037405,-151.0,0.000248,7]
[356882591,1743371037429,-382.450204,0.000248,7]
[356882592,1743371037452,-382.450204,0.000248,7]
[356882593,1743371037478,-151.0,0.000248,7]
[356882594,1743371037501,-211.88161,0.000249,7]
[356882595,1743371037525,-151.0,0.000249,7]
[356882596,1743371037556,-382.450204,0.000249,7]
[356882597,1743371037583,-382.450204,0.000249,7]
[356882598,1743371037606,-165.347099,0.00025897,7]
[356882599,1743371037630,-165.347099,0.00025897,7]
[356882600,1743371037654,-151.0,0.00025897,7]
[356882601,1743371037678,-1928.656664,0.00025897,7]
[356882602,1743371037702,-1928.656664,0.00025897,7]
[356882603,1743371037725,-151.0,0.00025897,7]
[356882604,1743371038783,150.0,0.00020814,7]
[356882605,1743371079267,310.65,0.000148,2]
[356882608,1743371163273,-150.0,0.00014899,2]
[356882609,1743371176146,-151.0,0.000248,7]
[356882610,1743371176170,-151.0,0.000248,7]
[356882611,1743371176195,-151.0,0.000248,7]
[356882612,1743371176219,-151.0,0.000248,7]
[356882613,1743371176243,-151.0,0.000248,7]
[356882614,1743371176267,-1542.925331,0.000248,7]
[356882615,1743371176302,-151.0,0.000248,7]
[356882616,1743371176331,-1542.925331,0.000248,7]
[356882617,1743371176354,-151.0,0.000248,7]
[356882618,1743371176377,-151.0,0.000248,7]
[356882619,1743371176400,-151.0,0.000248,7]
[356882620,1743371176424,-184.966498,0.000248,7]
[356882621,1743371176448,-184.966498,0.000248,7]
[356882622,1743371176473,-151.0,0.000249,7]
[356882623,1743371176496,-151.0,0.000249,7]
[356882624,1743371176519,-151.0,0.000249,7]
[356882625,1743371176542,-151.0,0.000249,7]
[356882626,1743371178073,218.66204,0.000248,7]
[356882629,1743371282399,-151.33,0.00014899,2]
[356882631,1743371300367,-151.0,0.000248,7]
[356882632,1743371300391,-151.0,0.000248,7]
[356882633,1743371300414,-248.990661,0.000248,7]
[356882634,1743371300437,-151.0,0.000248,7]
[356882635,1743371300459,-151.0,0.000248,7]
[356882636,1743371300484,-151.0,0.000248,7]
[356882637,1743371300509,-151.0,0.000248,7]
[356882638,1743371300534,-151.0,0.000248,7]
[356882645,1743371431760,-150.0,0.00014899,2]
[356882646,1743371431770,-300.0,0.00014899,2]
[356882647,1743371431779,-288.7335,0.000149,2]
[356882648,1743371431788,-9596.61924793,0.000149,2]
[356882649,1743371431820,-12319.90945702,0.000149,2]
[356882650,1743371431832,-1539.6573271,0.000149,2]
[356882651,1743371431941,-24042.61756843,0.000149,2]
[356882652,1743371432004,-290.91499995,0.000149,2]
[356882653,1743371432015,-573.27389957,0.000149,2]
[356882654,1743371432024,-67.56346991,0.000149,2]
[356882680,1743371437617,-365.87533009,0.000149,2]
[356882681,1743371437626,-3139.949,0.000149,2]
[356882682,1743371437635,-150.0,0.000149,2]
[356882683,1743371437644,-2568.74772491,0.000149,2]
[356882684,1743371437729,-932.58255358,0.000149,2]
[356882685,1743371437740,-2064.237175,0.000149,2]
[356882686,1743371437753,-261.39491658,0.000149,2]
[356882687,1743371437763,-268.2313,0.000149,2]
[356882688,1743371437772,-185.16747053,0.000149,2]
[356882689,1743371437781,-521.3676,0.000149,2]
[356882690,1743371437790,-167.76804559,0.000149,2]
[356882691,1743371437800,-203.60534088,0.000149,2]
[356882692,1743371437810,-2879.4441472,0.000149,2]
[356882693,1743371437819,-150.0,0.00014959,2]
[356882694,1743371437829,-629.83043926,0.00014973,2]
[356882695,1743371437838,-901.0,0.00015,2]
[356882696,1743371437847,-506944.15338689,0.00015,2]
[356882697,1743371437858,-52809.61873836,0.00015,2]
[356882712,1743371442985,-9680.5972843,0.00015,2]
[356882722,1743371444756,-881.47877803,0.00015,2]
[356882724,1743371445751,-810.0,0.00015,2]
[356882725,1743371445761,-4099.29479901,0.00015,2]
[356882726,1743371445773,-1995.44000001,0.00015,2]
[356882727,1743371446028,-435.5973821,0.00015,2]
[356882728,1743371470419,-151.0,0.000248,7]
[356882729,1743371470444,-151.0,0.000248,7]
[356882730,1743371470466,-151.0,0.000248,7]
[356882731,1743371470491,-1388.632798,0.000248,7]
[356882732,1743371470514,-152.6808,0.000248,7]
[356882733,1743371470545,-1388.632798,0.000248,7]
[356882734,1743371470575,-151.0,0.000248,7]
[356882735,1743371470614,-287.942184,0.000248,7]
[356882736,1743371470642,-165.182049,0.000248,7]
[356882737,1743371470666,-151.0,0.000248,7]
[356882738,1743371470690,-151.0,0.000248,7]
[356882739,1743371470715,-151.0,0.000248,7]
[356882740,1743371470738,-412.479138,0.000248,7]
[356882741,1743371470763,-412.479138,0.000248,7]
[356882742,1743371470787,-151.0,0.000249,7]
[356882743,1743371470809,-151.0,0.000249,7]
[356882744,1743371470833,-412.479138,0.000249,7]
[356882745,1743371470856,-151.0,0.00025634,7]
[356882746,1743371470898,412.479138,0.000249,7]
[356882747,1743371642444,350.0,0.00014949,3]
[356882748,1743371673589,-151.0,0.000248,7]
[356882749,1743371673614,-166.469848,0.000248,7]
[356882750,1743371673637,-166.469848,0.000248,7]
[356882751,1743371673664,-151.0,0.000248,7]
[356882752,1743371673689,-151.0,0.000248,7]
[356882753,1743371673713,-151.0,0.000248,7]
[356882754,1743371673739,-151.0,0.000248,7]
[356882755,1743371673764,-151.0,0.000248,7]
[356882756,1743371673789,-1249.769518,0.000248,7]
[356882757,1743371673813,-1249.769518,0.000248,7]
[356882758,1743371673838,-151.0,0.000248,7]
[356882759,1743371673862,-151.0,0.000248,7]
[356882760,1743371673887,-151.0,0.000248,7]
[356882761,1743371673911,-151.0,0.000248,7]
[356882762,1743371673935,-305.960163,0.000248,7]
[356882763,1743371673960,-151.0,0.000249,7]
[356882764,1743371673983,-166.469848,0.000249,7]
[356882765,1743371674007,-166.469848,0.000249,7]
[356882766,1743371674033,-151.0,0.0002719,7]
[356882767,1743371674062,-301.68619,0.0002719,7]
[356882768,1743371674087,-151.0,0.0002719,7]
[356882769,1743371674112,-151.0,0.0002719,7]
[356882770,1743371674136,-151.0,0.0002719,7]
[356882771,1743371674161,-1249.769518,0.0002719,7]
[356882772,1743371674185,-1249.769518,0.0002719,7]
[356882773,1743371674208,-201.942235,0.0002719,7]
[356882774,1743371674232,-151.0,0.0002719,7]
[356882775,1743371674254,-151.0,0.0002719,7]
[356882776,1743371674277,-223.312221,0.0002719,7]
[356882777,1743371674668,305.960163,0.000248,7]
[356882778,1743371761841,-174.05445656,0.00014899,2]
[356882779,1743371761873,350.0,0.0001495,3]
[356882780,1743371910302,1029.881,0.000147,2]
[356882781,1743371910334,157.607,0.000147,2]
[356882784,1743372122553,-257.3597206,0.00014899,2]
[356882785,1743372181863,-172.93494344,0.00014899,2]
[356882786,1743372197842,1082.19568419,0.00033487,120]
[356882787,1743372200765,267.59917562,0.00033487,120]
[356882788,1743372241827,350.0,0.000149,3]
[356882789,1743372241937,-155.21812665,0.00014899,2]
[356882791,1743372260014,340.43344067,0.00014743,2]
[356882793,1743372361059,350.0,0.0001495,3]
[356882796,1743372510002,120.89129156,0.00014736,2]
[356882797,1743372510024,314.07967754,0.00014736,2]
[356882798,1743372547617,3475.615127,7.945e-05,2]
[356882799,1743372569834,1620.310209,0.00014825,2]
[356882800,1743372576819,979.17450914,0.000148,2]
[356882807,1743372631912,-350.0,0.000149,2]
[356882808,1743372631936,-27.5878,0.000149,2]
[356882809,1743372631946,-161.0038,0.000149,2]
[356882810,1743372631956,-151.33,0.000149,2]
[356882811,1743372631966,-276.6128,0.000149,2]
[356882812,1743372632210,-451.76828248,0.000149,2]
[356883099,1743372637900,-6716.31311752,0.000149,2]
[356883100,1743372637910,-191.6506,0.000149,2]
[356883101,1743372637919,-66244.2908,0.000149,2]
[356883102,1743372637929,-1235.827,0.000149,2]
[356883103,1743372637939,-431.4142,0.000149,2]
[356883104,1743372637947,-328.1531,0.000149,2]
[356883105,1743372637957,-213.62811925,0.000149,2]
[356883106,1743372637966,-747.637912,0.000149,2]
[356883107,1743372637976,-155.48232007,0.000149,2]
[356883108,1743372637993,-189.06245448,0.000149,2]
[356883109,1743372638003,-1186.33581828,0.000149,2]
[356883110,1743372638012,-631.48776162,0.00014973,2]
[356883111,1743372638021,-500.0,0.00014973,2]
[356883112,1743372638031,-826.0,0.00015,2]
[356883113,1743372638040,-241544.68455201,0.00015,2]
[356883114,1743372638051,-16418.425,0.00015,2]
[356883115,1743372638062,-24198.53934564,0.00015,2]
[356883116,1743372638075,-409.725,0.00015,2]
[356883124,1743372640008,-797.6518777,0.00015,2]
[356883125,1743372640020,-1094.0,0.00015,2]
[356883126,1743372640112,-13765.91619579,0.00015,2]
[356883127,1743372640150,-1699.71911295,0.00015,2]
[356883128,1743372640175,-1471.48040246,0.00015,2]
[356883129,1743372640279,-1972.568,0.00015,2]
[356883130,1743372640298,-643.31255906,0.00015,2]
[356883131,1743372640395,-429.25942431,0.00015,2]
[356883169,1743372643010,-621.37860057,0.00015,2]
[356883176,1743372643110,-163999.99999994,0.00015,2]
[356883177,1743372643122,-421.16,0.00015,2]
[356883178,1743372643133,-30982.12944277,0.00015,2]
[356883179,1743372643145,-8174.58241872,0.00015,2]
[356883180,1743372643226,-392.29490377,0.00015,2]
[356883204,1743372644744,-455.04074549,0.00015,2]
[356883205,1743372644756,-29023.90821292,0.00015,2]
[356883223,1743372646031,-854.0,0.00015,2]
[356883225,1743372646041,-9053.1128288,0.00015,2]
[356883237,1743372646152,-657.47866581,0.00015,2]
[356883240,1743372646164,-1070.7848646,0.00015,2]
[356883241,1743372646176,-23042.30118415,0.00015,2]
[356883242,1743372646185,-25135.3509358,0.00015,2]
[356883243,1743372646260,-823.36737128,0.00015,2]
[356883244,1743372646272,-7389.08075006,0.00015,2]
[356883245,1743372646283,-4753.48499997,0.00015,2]
[356883299,1743372678361,199.88885791,0.00014999,5]
[356883300,1743372678394,1519.57916483,0.00014999,5]
[356883301,1743372782649,152.35,0.000148,2]
[356883302,1743372991265,154.01,0.00013699,2]
[356883303,1743372991608,154.01,0.00013699,2]
[356883304,1743372991974,154.01,0.00013699,2]
[356883305,1743372992301,154.01,0.00013699,2]
[356883306,1743372992712,154.01,0.00013699,2]
[356883307,1743372993122,154.01,0.00013699,2]
[356883308,1743372993492,154.01,0.00013699,2]
[356883309,1743372993834,154.01,0.00013699,2]
[356883310,1743372994738,154.01,0.00013699,2]
[356883311,1743372995110,154.01,0.00013699,2]
[356883312,1743372995436,154.01,0.00013699,2]
[356883313,1743372995911,154.01,0.00013699,2]
[356883314,1743372996933,154.02367317,0.00013699,2]
[356883315,1743373021457,1456.32680415,0.0001485,2]
[356883316,1743373021478,10000.0,0.0001485,2]
[356883317,1743373021498,808.24120877,0.0001485,2]
[356883318,1743373022088,435.20532886,0.00014763,2]
[356883319,1743373198607,151.69,0.00013699,2]
[356883320,1743373214096,-150.0,0.00020926,7]
[356883321,1743373214123,-151.0,0.00022525,7]
[356883322,1743373214148,-151.0,0.000248,7]
[356883323,1743373214174,-151.0,0.000248,7]
[356883324,1743373214203,-151.0,0.000248,7]
[356883325,1743373214227,-151.0,0.000248,7]
[356883326,1743373214251,-151.0,0.000248,7]
[356883327,1743373214278,-151.0,0.000248,7]
[356883328,1743373214301,-151.0,0.000248,7]
[356883329,1743373214324,-151.0,0.000248,7]
[356883330,1743373214348,-151.0,0.000248,7]
[356883331,1743373214371,-151.0,0.000248,7]
[356883332,1743373214394,-329.983311,0.000248,7]
[356883333,1743373214417,-329.983311,0.000248,7]
[356883334,1743373214440,-151.0,0.000248,7]
[356883335,1743373214463,-151.0,0.000248,7]
[356883336,1743373214485,-151.0,0.000248,7]
[356883337,1743373214509,-151.0,0.000248,7]
[356883338,1743373214532,-151.0,0.000248,7]
[356883339,1743373214556,-999.815614,0.000248,7]
[356883340,1743373214578,-286.214409,0.000248,7]
[356883341,1743373214602,-999.815614,0.000248,7]
[356883342,1743373214625,-151.0,0.000248,7]
[356883343,1743373214648,-151.0,0.000248,7]
[356883344,1743373214672,-229.553584,0.000248,7]
[356883345,1743373214695,-275.364147,0.000248,7]
[356883346,1743373214718,-275.364147,0.000248,7]
[356883347,1743373214741,-151.0,0.000248,7]
[356883348,1743373214765,-151.0,0.000248,7]
[356883349,1743373214789,-151.0,0.000248,7]
[356883350,1743373214812,-151.0,0.000248,7]
[356883351,1743373214835,-151.0,0.000248,7]
[356883352,1743373214858,-151.0,0.000249,7]
[356883353,1743373214881,-151.0,0.000249,7]
[356883354,1743373214904,-151.0,0.000249,7]
[356883355,1743373214926,-151.0,0.000249,7]
[356883356,1743373214949,-272.410329,0.000249,7]
[356883357,1743373214972,-151.0,0.000249,7]
[356883358,1743373214996,-151.0,0.000249,7]
[356883359,1743373215019,-151.0,0.000249,7]
[356883360,1743373215043,-151.0,0.000249,7]
[356883361,1743373215068,-163.93,0.00026036,120]
[356883362,1743373215093,-999.815614,0.000279,7]
[356883363,1743373215119,-999.815614,0.000279,7]
[356883364,1743373215145,-151.0,0.00028,7]
[356883365,1743373215170,-151.0,0.00028,7]
[356883366,1743373215199,-151.0,0.00028,7]
[356883367,1743373215222,-151.0,0.00028,7]
[356883368,1743373215247,-151.0,0.000282,7]
[356883369,1743373215275,-151.0,0.0002862,7]
[356883370,1743373215299,-275.364147,0.0002862,7]
[356883371,1743373215323,-275.364147,0.0002862,7]
[356883372,1743373215346,-151.0,0.0002862,7]
[356883373,1743373215368,-151.0,0.0002862,7]
[356883374,1743373215391,-151.0,0.0002862,7]
[356883375,1743373215414,-151.0,0.0002862,7]
[356883376,1743373215438,-163.93,0.0002864,120]
[356883377,1743373215460,-329.983311,0.00028663,7]
[356883378,1743373215483,-329.983311,0.00028663,7]
[356883379,1743373215511,151.0,0.000248,7]
[356883380,1743373215545,151.0,0.000249,7]
[356883382,1743373265008,150.0,0.000148,2]
[356883386,1743373512357,435.20532886,0.00014555,2]
[356883387,1743373536608,1128.85613639,8e-05,2]
[356883388,1743373567806,858.7083384,8e-05,2]
[356883389,1743373633373,-150.0,0.00020753,7]
[356883390,1743373633406,-151.0,0.000248,7]
[356883391,1743373633438,-151.0,0.000248,7]
[356883392,1743373633466,-151.0,0.000248,7]
[356883393,1743373633492,-151.0,0.000248,7]
[356883394,1743373633518,-151.0,0.000248,7]
[356883395,1743373633542,-263.986648,0.000248,7]
[356883396,1743373633567,-263.986648,0.000248,7]
[356883397,1743373633595,-151.0,0.000248,7]
[356883398,1743373633622,-151.0,0.000248,7]
[356883399,1743373633649,-852.702492,0.000248,7]
[356883400,1743373633675,-852.702492,0.000248,7]
[356883401,1743373633700,-151.0,0.000248,7]
[356883402,1743373633728,-151.0,0.000248,7]
[356883403,1743373633757,-151.0,0.000248,7]
[356883404,1743373633785,-151.0,0.000249,7]
[356883405,1743373633810,-151.0,0.000249,7]
[356883406,1743373633839,-209.267999,0.000249,7]
[356883407,1743373633866,-151.0,0.000249,7]
[356883408,1743373633896,-263.986648,0.00029432,7]
[356883409,1743373633920,-263.986648,0.00029432,7]
[356883410,1743373633947,-151.0,0.00029432,7]
[356883411,1743373633972,-151.0,0.00029432,7]
[356883412,1743373633999,-852.702492,0.00029432,7]
[356883413,1743373634027,-852.702492,0.00029432,7]
[356883414,1743373634054,-151.0,0.00029432,7]
[356883415,1743373634080,-151.0,0.00029432,7]
[356883416,1743373634106,-247.517569,0.00029432,7]
[356883417,1743373638251,205.0,9.8e-05,2]
[356883419,1743373676873,1668.33186043,0.0001,2]
[356883431,1743373832154,-241.8643,0.000149,2]
[356883432,1743373832165,-10276.79556611,0.000149,2]
[356883433,1743373832177,-892.55129881,0.000149,2]
[356883434,1743373832188,-55074.94393508,0.000149,2]
[356883435,1743373832198,-223.8528,0.000149,2]
[356883436,1743373832208,-158.3783,0.000149,2]
[356883437,1743373832218,-152.52889092,0.000149,2]
[356883438,1743373832228,-150.0,0.000149,2]
[356883439,1743373832238,-1693.0808,0.000149,2]
[356883440,1743373832247,-496.98312072,0.000149,2]
[356883441,1743373832258,-152.52889091,0.00014901,2]
[356883442,1743373832268,-152.52889091,0.00014901,2]
[356883443,1743373832278,-152.52889091,0.00014902,2]
[356883444,1743373832288,-152.52889091,0.00014903,2]
[356883445,1743373832297,-152.52889091,0.00014903,2]
[356883446,1743373832307,-152.52889091,0.00014904,2]
[356883447,1743373832317,-500.0,0.00014973,2]
[356883448,1743373832332,-500.0,0.00014973,2]
[356883449,1743373832342,-762.0,0.00015,2]
[356883450,1743373832351,-5232.71496858,0.00015,2]
[356883451,1743373832368,-855.60425003,0.00015,2]
[356883452,1743373832380,-74835.52320145,0.00015,2]
[356883453,1743373832391,-696.62044734,0.00015,2]
[356883454,1743373832403,-2585.8371254,0.00015,2]
[356883455,1743373832418,-767.18171994,0.00015,2]
[356883456,1743373832430,-3145.05925856,0.00015,2]
[356883457,1743373832442,-4050.0,0.00015,2]
[356883458,1743373832454,-2719.999997,0.00015,2]
[356883459,1743373832466,-82982.30087,0.00015,2]
[356883460,1743373832478,-1388.06236617,0.00015,2]
[356883552,1743373837965,-498.42527468,0.000149,2]
[356883553,1743373837975,-112.69373243,0.00015,2]
[356883554,1743373837991,-423.82590353,0.00015,2]
[356883555,1743373838003,-50.48036404,0.00015,2]
[356883556,1743373838012,-2013.66888596,0.00015,2]
[356883557,1743373838031,-3067.99999,0.00015,2]
[356883558,1743373838051,-19783.16853405,0.00015,2]
[356883559,1743373838063,-169503.83409735,0.00015,2]
[356883560,1743373838075,-775.44461026,0.00015,2]
[356883561,1743373838155,-624.1476786,0.00015,2]
[356883562,1743373838167,-929.41239997,0.00015,2]
[356883563,1743373838183,-1296.4560435,0.00015,2]
[356883564,1743373838194,-548.05000155,0.00015,2]
[356883583,1743373840296,-266.88,0.00015,2]
[356883584,1743373840308,-254.12,0.00015,2]
[356883585,1743373840317,-18.70058819,0.00015,2]
[356883586,1743373840331,-2641.75187425,0.00015,2]
[356883587,1743373840342,-625126.51446377,0.00015,2]
[356883588,1743373840353,-10986.77463015,0.00015,2]
[356883589,1743373840365,-3677.54023654,0.00015,2]
[356883590,1743373840376,-1514.18822812,0.00015,2]
[356883591,1743373840480,-522.91188455,0.00015,2]
[356883592,1743373840492,-1336.0642184,0.00015,2]
[356883594,1743373840728,-2407.17336082,0.00015,2]
[356883635,1743373844073,-24758.41513497,0.00015,2]
[356883636,1743373844086,-8154.61406725,0.00015,2]
[356883637,1743373844097,-1121.80574648,0.00015,2]
[356883640,1743373846202,-488.53388344,0.00015,2]
[356883641,1743373846213,-2877.12511633,0.00015,2]
[356883642,1743373846360,-1636.78576291,0.00015,2]
[356883645,1743373982949,-150.0,0.00014899,2]
[356883646,1743374010457,459.20317981,0.0001474,2]
[356883648,1743374213154,500.0,0.00033493,120]
[356883649,1743374223811,500.0,0.00033493,120]
[356883650,1743374253436,500.0,0.00033493,120]
[356883651,1743374275043,500.0,0.00033493,120]
[356883652,1743374696279,-150.0,0.0002052,7]
[356883653,1743374696307,-151.0,0.000248,7]
[356883654,1743374696331,-151.0,0.000248,7]
[356883655,1743374696356,-220.291318,0.000248,7]
[356883656,1743374696381,-220.291318,0.000248,7]
[356883657,1743374696405,-271.927001,0.000248,7]
[356883658,1743374696430,-211.189319,0.000248,7]
[356883659,1743374696454,-211.189319,0.000248,7]
[356883660,1743374696478,-151.0,0.000249,7]
[356883661,1743374696502,-202.341229,0.000249,7]
[356883662,1743374696528,-151.0,0.000249,7]
[356883663,1743374696554,-151.0,0.000249,7]
[356883664,1743374696579,-682.161993,0.000249,7]
[356883665,1743374696604,-682.161993,0.000249,7]
[356883666,1743374696629,-151.0,0.000249,7]
[356883667,1743374696654,-229.927283,0.000249,7]
[356883668,1743374696678,-151.0,0.000249,7]
[356883669,1743374696703,-151.0,0.000249,7]
[356883670,1743374696733,-1346.9,0.00027464,16]
[356883671,1743374696758,-163.925,0.00027464,16]
[356883672,1743374696798,-4025.191349,0.00028,60]
[356883673,1743374696825,-151.0,0.00029432,7]
[356883674,1743374696850,-211.189319,0.00029686,7]
[356883675,1743374696881,-211.189319,0.00029686,7]
[356883676,1743374696907,-151.0,0.00029743,7]
[356883677,1743374696933,-220.291318,0.00029743,7]
[356883678,1743374696958,-220.291318,0.00029743,7]
[356883680,1743374906927,-151.0,0.000248,7]
[356883681,1743374906955,-613.945794,0.000248,7]
[356883682,1743374906984,-613.945794,0.000248,7]
[356883683,1743374907007,-151.0,0.000248,7]
[356883684,1743374907033,-151.0,0.000248,7]
[356883685,1743374907059,-185.64,0.00027655,120]
[356883686,1743374907084,-151.0,0.00029686,7]
[356883687,1743375002971,350.0,0.000149,3]
[356883695,1743375032237,-150.0,0.00014899,2]